[Event "11th Festival Palmanova-A 2022"]
[Site "Strassoldo"]
[Date "2022.12.10"]
[Round "4.3"]
[White "Savanovic, Maksim"]
[Black "Belli, Giorgio"]
[Result "1/2-1/2"]
[WhiteElo "2154"]
[BlackElo "2165"]
[Annotator "TA"]
[PlyCount "15"]
[EventDate "2022.12.08"]
[EventType "swiss"]
[EventCountry "ITA"]
[SourceTitle "playchess.com"]
[Source "ChessBase"]
[SourceQuality "1"]
[TimeControl "5400+30"]

{[%evp 9,14,2,12,0,0,0,0]} 1. d4 {[%emt 0:00:02]} Nf6 {[%emt 0:12:19]} 2. Bf4 {[%emt 0:00:04]} c5 {[%emt 0:00:34]} 3. e3 {[%emt 0:00:07]} Qb6 {[%emt 0:00:16]} 4. Na3 {[%emt 0:00:44]} Qxb2 {[%emt 0:00:09]} 5. Nb5 {[%emt 0:00:07]} Nd5 {[%emt 0:00:06] The position is equal.} 6. Rb1 {[%emt 0:00:22] A45: Trompowsky Attack.} ({Much weaker is} 6. dxc5 Nxf4 7. Rb1 (7. Nc7+ $2 Kd8 $19) 7... Qe5 $15) 6... Qxa2 {[%emt 0:00:04]} 7. Ra1 {[%emt 0:00:08]} Qb2 {[%emt 0:00:07] [#] A balanced but interesting game.} {Predecessor:} 8. Rb1 $146 1/2-1/2

[Event "11th Festival Palmanova-A 2022"]
[Site "Strassoldo"]
[Date "2022.12.10"]
[Round "4.4"]
[White "Liloni, Francesco Mattia"]
[Black "Lumachi, Gabriele"]
[Result "1/2-1/2"]
[ECO "C29"]
[WhiteElo "1909"]
[BlackElo "2394"]
[Annotator "TA"]
[PlyCount "54"]
[EventDate "2022.12.08"]
[EventType "swiss"]
[EventCountry "ITA"]
[SourceTitle "playchess.com"]
[Source "ChessBase"]
[SourceQuality "1"]
[TimeControl "5400+30"]

{[%evp 9,54,-29,-15,-16,-4,-11,15,2,12,-52,-59,-60,-29,-19,-22,-29,-28,-14,-18,-41,-27,-35,-13,-32,-4,-36,0,0,0,0,2,-8,72,0,0,-67,506,500,508,513,1218,100,101,113,113,120,106]} 1. e4 {[%emt 0:00:09]} e5 {[%emt 0:00:06]} 2. Nc3 {[%emt 0:00:15]} Nf6 {[%emt 0:00:04]} 3. f4 {[%emt 0:00:06]} d5 {[%emt 0:00:05]} 4. fxe5 {[%emt 0:00:06]} Nxe4 {[%emt 0:00:03]} 5. Qf3 {[%emt 0:00:08]} Nc6 {[%emt 0:00:35]} (5... f5 $5 {[%cal Rf8c5]}) 6. Bb5 {[%emt 0:00:07] C29: Vienna Game: 2...Nf6 3 f4.} Nxc3 {[%emt 0:04:19]} 7. dxc3 {[%emt 0:00:21]} Be6 {[%emt 0:03:39]} 8. Bf4 {[%emt 0:02:29] The position is equal.} a6 {[%emt 0:12:14]} 9. Bd3 {[%emt 0:02:06] [#]} (9. Bxc6+ $11 bxc6 10. Ne2) 9... g5 $146 {[%emt 0:03:13]} ({Predecessor:} 9... Qd7 10. Qg3 O-O-O 11. Nf3 h6 12. h4 Bf5 13. O-O-O Bxd3 14. Rxd3 Qe6 15. Nd4 Nxd4 16. cxd4 {½-½ (64) Lagarde,M (2573)-Dardha,D (2609) Cap d'Agde 2022}) 10. Bg3 {[%emt 0:01:33]} Bg7 {[%emt 0:00:17]} 11. Qe3 {[%emt 0:04:39]} d4 {[%emt 0:00:26]} 12. cxd4 {[%emt 0:00:12]} Qxd4 {[%emt 0:00:10]} 13. Qxd4 {[%emt 0:02:03]} Nxd4 {[%emt 0:00:10]} 14. Nf3 {[%emt 0:02:03]} Nxf3+ {[%emt 0:00:08]} 15. gxf3 {[%emt 0:00:02]} O-O-O {[%emt 0:02:41][%cal Ba8d8,Bd8d5,Bd5a5][%mdl 32]} 16. O-O-O {[%emt 0:05:36]} (16. h4 $5 {[%cal Rh4g5]}) 16... Rd5 {[%emt 0:16:42]} (16... Bxa2 17. b3 $18) 17. Rde1 {[%emt 0:06:59]} Ra5 {[%emt 0:05:04]} (17... h5 $5 {[%cal Rh5h4]}) 18. h4 {[%emt 0:07:38]} gxh4 {[%emt 0:04:04]} 19. Rxh4 {[%emt 0:00:32]} Rxa2 {[%emt 0:00:10]} 20. Rxh7 {[%emt 0:04:08]} Rg8 {[%emt 0:06:52] [#]} (20... Rxh7 $11 {remains equal.} 21. Bxh7 Ra1+ 22. Kd2 Rxe1 23. Kxe1 f6) 21. Kb1 {[%emt 0:02:24] White is more active.} (21. f4 $1 $16 {[%cal Rf4f5]}) 21... Ra5 $11 {[%emt 0:02:10][%cal Og7e5]} 22. Bh2 {[%emt 0:01:06] [#]} ({Better is} 22. Rh5 $11) 22... c5 $2 {[%emt 0:07:53][%mdl 8192]} (22... Bxe5 $1 $15 {keeps the upper hand.} 23. c4 (23. Bxe5 Rxe5 24. Be4 f5 $17) 23... Bxh2 24. Rxh2 Rg3) 23. Rg1 $18 {[%emt 0:02:24]} c4 {[%emt 0:03:27]} 24. Be4 {[%emt 0:00:24]} ({Worse is} 24. Rhxg7 Rxg7 25. Rxg7 cxd3 26. cxd3 Rc5 $11) 24... f5 {[%emt 0:00:22]} (24... c3 $142 25. b3 Rb5 26. Rhxg7 Rd8) 25. Bxb7+ $2 {[%emt 0:01:04]} ({Less strong is} 25. Rhxg7 Rxg7 26. Rxg7 fxe4 $14) (25. exf6 $18 {and the rest is easy.} Kd8 26. Rhxg7 Rxg7 27. Rxg7) 25... Kxb7 $16 {[%emt 0:00:14] White is better.} 26. Rgxg7+ {[%emt 0:00:06]} Rxg7 {[%emt 0:00:20]} 27. Rxg7+ {[%emt 0:00:06]} Kc6 {[%emt 0:00:04] Weighted Error Value: White=0.48/Black=0.42} 1/2-1/2

[Event "11th Festival Palmanova-A 2022"]
[Site "Strassoldo"]
[Date "2022.12.10"]
[Round "4.5"]
[White "Ranfagni, Stefano"]
[Black "Neuschmied, Siegfried"]
[Result "0-1"]
[ECO "A24"]
[WhiteElo "1934"]
[BlackElo "2244"]
[Annotator "TA"]
[PlyCount "58"]
[EventDate "2022.12.08"]
[EventType "swiss"]
[EventCountry "ITA"]
[SourceTitle "playchess.com"]
[Source "ChessBase"]
[SourceQuality "1"]
[TimeControl "5400+30"]

{[%evp 19,58,0,0,0,0,-8,-2,-41,-37,-94,-56,-81,-59,-149,-141,-228,-234,-235,-246,-254,-247,-236,-231,-243,-244,-516,-523,-554,-577,-550,-573,-704,-680,-903,-882,-896,-878,-894,-891,-829,-784]} 1. c4 {[%emt 0:00:05]} Nf6 {[%emt 0:05:06]} 2. Nc3 {[%emt 0:00:11]} g6 {[%emt 0:00:17]} 3. g3 {[%emt 0:00:11]} Bg7 {[%emt 0:00:04]} 4. Bg2 {[%emt 0:00:08]} d6 {[%emt 0:00:07]} 5. e4 {[%emt 0:00:41]} O-O {[%emt 0:00:48]} 6. Nge2 {[%emt 0:00:56]} e5 {[%emt 0:00:48]} 7. O-O {[%emt 0:00:08]} c6 {[%emt 0:00:28]} 8. d3 {[%emt 0:00:51]} a6 {[%emt 0:02:33]} 9. a4 {[%emt 0:01:28]} a5 {[%emt 0:01:12]} 10. h3 {[%emt 0:01:47]} Na6 {[%emt 0:00:07]} 11. Be3 {[%emt 0:00:38] A24: English Opening vs King's Indian: Lines without ...Nc6.} Nd7 {[%emt 0:23:02]} 12. f4 {[%emt 0:04:09]} f5 {[%emt 0:01:52]} 13. Kh2 {[%emt 0:04:00] The position is equal.} Ndc5 {[%emt 0:04:33] [#]} 14. Ra3 $146 {[%emt 0:06:07]} ({White should try} 14. d4 $15 exd4 15. Bxd4) ({Predecessor:} 14. exf5 Bxf5 15. fxe5 dxe5 16. d4 exd4 17. Nxd4 Bd3 18. Rxf8+ Bxf8 19. Rc1 Qe8 20. Bg5 {0-1 (35) Iotov,V (2502)-Chatalbashev,B (2573) Sunny Beach 2007}) 14... Qe7 {[%emt 0:01:19]} 15. Qd2 {[%emt 0:04:18]} Be6 {[%emt 0:05:51]} 16. Ng1 {[%emt 0:06:34]} (16. exf5 $15 Bxf5 17. fxe5 dxe5 18. Ne4) 16... Nb4 $17 {[%emt 0:05:00] Threatens to win with ...exf4. Black is more active.} 17. Nce2 {[%emt 0:09:04]} (17. exf5 $17 Bxf5 18. fxe5) 17... fxe4 $19 {[%emt 0:07:55]} 18. Bxc5 {[%emt 0:02:26]} dxc5 {[%emt 0:01:03]} 19. Bxe4 {[%emt 0:00:13]} Rad8 {[%emt 0:00:32] Strongly threatening ...Bxc4.} 20. Qc1 {[%emt 0:04:02]} Bf5 {[%emt 0:03:29]} 21. Bxf5 {[%emt 0:08:36]} Rxf5 {[%emt 0:00:16]} (21... gxf5 $2 {too greedy.} 22. fxe5 Nxd3 23. Qc2) 22. Qe3 $2 {[%emt 0:01:20] [#]} (22. Rf3) 22... Nc2 {[%emt 0:00:56][%csl LRa3,LRe3] Black is clearly winning.} 23. Qe4 {[%emt 0:00:33]} Nxa3 {[%emt 0:00:33]} 24. bxa3 {[%emt 0:00:07]} Rf7 {[%emt 0:01:35]} 25. Rb1 {[%emt 0:03:19]} exf4 {[%emt 0:01:49]} 26. Qxe7 {[%emt 0:00:01]} Rxe7 {[%emt 0:00:03]} 27. Nxf4 {[%emt 0:00:10]} g5 {[%emt 0:00:30]} 28. Nh5 {[%emt 0:02:15]} Rxd3 {[%emt 0:01:04]} 29. Nxg7 {[%emt 0:00:48]} Kxg7 {[%emt 0:00:03] White got outplayed after the opening.   Weighted Error Value: White=0.62/Black=0.04 (flawless)} 0-1

[Event "11th Festival Palmanova-A 2022"]
[Site "Strassoldo"]
[Date "2022.12.10"]
[Round "4.6"]
[White "Ceschia, Ivano"]
[Black "Perossa, Nicolas"]
[Result "1/2-1/2"]
[ECO "C77"]
[WhiteElo "2217"]
[BlackElo "2195"]
[Annotator "TA"]
[PlyCount "96"]
[EventDate "2022.12.08"]
[EventType "swiss"]
[EventCountry "ITA"]
[SourceTitle "playchess.com"]
[Source "ChessBase"]
[SourceQuality "1"]
[TimeControl "5400+30"]

{[%evp 13,96,7,10,12,8,-4,0,-33,-30,-18,-18,-25,-26,-29,-19,-33,7,-12,0,-106,0,0,0,0,0,0,0,-114,-114,-114,-102,-111,-105,-106,-83,-81,-85,-85,-79,-124,-105,-89,-50,-81,-76,-85,-42,-46,-47,-53,-35,-59,-21,-11,0,-39,-29,-27,-23,-23,-33,-31,-34,-32,-24,-41,-35,-71,-70,-75,-77,-52,-8,-8,-8,-8,-8,-8,0,0,0,0,0,0,0]} 1. e4 {[%emt 0:00:17]} e5 {[%emt 0:00:08]} 2. Nf3 {[%emt 0:00:30]} Nc6 {[%emt 0:00:10]} 3. Bb5 {[%emt 0:00:08]} a6 {[%emt 0:00:07]} 4. Ba4 {[%emt 0:00:06]} Nf6 {[%emt 0:00:09]} 5. Bxc6 {[%emt 0:05:16]} dxc6 {[%emt 0:00:11]} 6. d3 {[%emt 0:00:06]} Bd6 {[%emt 0:00:09]} 7. Nbd2 {[%emt 0:02:30]} Be6 {[%emt 0:00:09]} 8. b3 {[%emt 0:16:01] C77: Ruy Lopez: 3...a6 4 Ba4 Nf6, unusual lines.} Qe7 {[%emt 0:04:07]} 9. Bb2 {[%emt 0:03:41]} Nd7 {[%emt 0:00:16]} 10. O-O {[%emt 0:05:02]} O-O-O {[%emt 0:05:48]} 11. Nc4 {[%emt 0:07:23] [#]} Bxc4 $146 {[%emt 0:09:23]} ({Predecessor:} 11... Bg4 12. Qe2 f6 13. Nxd6+ Qxd6 14. Qe3 Bxf3 15. Qxf3 Nf8 16. Rfe1 Ne6 17. Rad1 c5 {0-1 (27) Bonelli Maestracci,P (1801)-Venkatesh,M (2479) Bastia 2022}) 12. bxc4 {[%emt 0:00:30]} g5 {[%emt 0:06:29][%cal Bg7g5,Bg5g4][%mdl 32]} 13. a4 {[%emt 0:06:31]} g4 {[%emt 0:04:09]} 14. Nd2 {[%emt 0:00:54]} Qh4 {[%emt 0:05:43]} 15. Nb3 {[%emt 0:02:57]} Rhg8 {[%emt 0:01:15][%cal Of7f5]} (15... f5 {is more complex.} 16. exf5 Rhf8 17. g3 Qh3) 16. Bc1 {[%emt 0:06:59] Prevents f5.} (16. Qe2 $11) 16... Nc5 {[%emt 0:07:12]} ({Black should play} 16... f5 $17 {...f4 is the strong threat.} 17. Qe2 f4) 17. Nxc5 $11 {[%emt 0:00:54]} Bxc5 {[%emt 0:00:08]} 18. Be3 {[%emt 0:01:54] Prevents g3.} g3 $40 {[%emt 0:07:43][%mdl 128] White needs to defend precisely.} 19. hxg3 {[%emt 0:00:55]} (19. Bxc5 $2 Qxh2#) 19... Rxg3 {[%emt 0:00:10][%mdl 64] [#]} 20. fxg3 {[%emt 0:04:03]} (20. Bxc5 $11 {was the only way to keep the balance.} Rh3 21. gxh3 Qxh3 22. f4 (22. f3 $2 Qg3+ 23. Kh1 Qh4+ 24. Kg2 Rg8#) 22... Qg3+ 23. Kh1 Qh3+ 24. Kg1 Qg3+ 25. Kh1 Qh3+ 26. Kg1) 20... Bxe3+ $17 {[%emt 0:00:09]} 21. Rf2 {[%emt 0:00:05]} Qxg3 {[%emt 0:00:41][%mdl 64] Pin} (21... Bxf2+ $6 22. Kxf2 Qe7 23. Qe2 $11) 22. Qf3 {[%emt 0:00:10]} Qxf3 {[%emt 0:05:36]} ({And not} 22... Bxf2+ 23. Qxf2 Qg6 24. Rf1 $15) 23. gxf3 {[%emt 0:00:02][%cal Og1f1][%mdl 4096] Endgame KRR-KRB} Rd6 {[%emt 0:00:20][%cal Od6h6]} ({Much worse is} 23... Bxf2+ $6 24. Kxf2 Rh8 25. c5 $15) 24. Kf1 {[%emt 0:00:26]} Bxf2 {[%emt 0:06:44]} 25. Kxf2 {[%emt 0:00:02] KR-KR} Rh6 {[%emt 0:00:33] Inhibits Rh1.} 26. Rg1 {[%emt 0:00:52]} Rh2+ {[%emt 0:01:52]} 27. Ke3 {[%emt 0:00:03]} Kd7 {[%emt 0:02:32][%cal Oh7h5]} 28. Rg7 {[%emt 0:06:09]} Ke7 {[%emt 0:00:53]} ({Reject} 28... Rxc2 $6 29. Rxf7+ Kd6 30. Rxh7 $11) 29. c3 {[%emt 0:00:12]} Kf8 {[%emt 0:03:03] Prevents Rg8+.} 30. Rg5 {[%emt 0:00:20] Prevents f5.} f6 {[%emt 0:00:26]} 31. Rf5 {[%emt 0:00:02]} Ke7 {[%emt 0:00:07]} 32. d4 {[%emt 0:00:15]} exd4+ {[%emt 0:03:04]} 33. cxd4 {[%emt 0:00:04]} Ke6 {[%emt 0:01:34]} 34. Ra5 {[%emt 0:03:05]} h5 {[%emt 0:05:00]} 35. Kf4 {[%emt 0:00:56]} Rc2 {[%emt 0:04:43]} 36. Rxh5 {[%emt 0:03:17]} Rxc4 {[%emt 0:00:08]} 37. Ke3 {[%emt 0:00:13]} Rxa4 {[%emt 0:03:58] And now ...Ra3+ would win.} 38. f4 $1 {[%emt 0:12:52]} Ra3+ {[%emt 0:01:08]} 39. Ke2 {[%emt 0:00:06]} Kf7 {[%emt 0:02:30]} 40. Rh7+ {[%emt 0:01:32] [#]} Kg6 $1 {[%emt 0:00:05]} 41. Rxc7 {[%emt 0:00:12]} Rb3 {[%emt 0:00:39]} 42. Rc8 {[%emt 0:02:04]} a5 {[%emt 0:07:05] White must now prevent ...a4.} (42... f5 $5 {[%cal Rf5e4]} 43. e5 Kf7 $17) 43. Rg8+ {[%emt 0:00:14] The position is equal.} Kf7 {[%emt 0:00:57]} 44. Ra8 {[%emt 0:00:05]} Rb4 {[%emt 0:00:20]} 45. Ke3 {[%emt 0:00:50]} Rb3+ {[%emt 0:00:29]} 46. Ke2 {[%emt 0:00:25]} Rb2+ {[%emt 0:01:15]} 47. Kd3 {[%emt 0:03:51]} Rb3+ {[%emt 0:00:32]} 48. Kd2 {[%emt 0:02:07]} Rb4 {[%emt 0:00:21] Weighted Error Value: White=0.15 (very precise) /Black=0.12 (very precise)} 1/2-1/2

[Event "11th Festival Palmanova-A 2022"]
[Site "Strassoldo"]
[Date "2022.12.10"]
[Round "4.7"]
[White "Casadio, Niccolo`"]
[Black "Iolis, Oleg"]
[Result "1-0"]
[ECO "B90"]
[WhiteElo "2095"]
[BlackElo "2212"]
[Annotator "TA"]
[PlyCount "157"]
[EventDate "2022.12.08"]
[EventType "swiss"]
[EventCountry "ITA"]
[SourceTitle "playchess.com"]
[Source "ChessBase"]
[SourceQuality "1"]
[TimeControl "5400+30"]

{[%evp 18,157,22,21,20,16,37,34,37,25,23,-22,0,-1,-15,-58,-58,-100,-87,-66,60,50,60,45,43,0,101,101,135,129,135,61,81,54,109,70,213,70,133,150,138,72,97,31,38,64,55,0,0,0,0,0,0,0,8,8,8,0,0,0,0,0,83,83,93,32,32,32,83,8,8,8,8,8,29,32,150,150,150,150,150,150,362,217,185,0,0,0,0,0,0,0,0,0,0,0,0,0,8,8,8,8,8,8,29963,0,29966,29965,29968,29969,29973,29973,29971,29966,29966,29966,29965,0,29963,29966,29964,29967,29967,29968,29974,0,29974,29976,29975,29977,29976,29977,29980,29978,29979,29979,29978,29979,29980,29976,29976,29976]} 1. e4 {[%emt 0:00:03]} c5 {[%emt 0:00:04]} 2. Nf3 {[%emt 0:00:04]} d6 {[%emt 0:00:03]} 3. d4 {[%emt 0:00:06]} cxd4 {[%emt 0:00:04]} 4. Nxd4 {[%emt 0:00:07]} Nf6 {[%emt 0:00:02]} 5. Nc3 {[%emt 0:00:15]} a6 {[%emt 0:00:04]} 6. Be3 {[%emt 0:00:09]} e5 {[%emt 0:00:08]} 7. Nb3 {[%emt 0:00:05]} Be7 {[%emt 0:00:27]} 8. f3 {[%emt 0:00:06]} Be6 {[%emt 0:00:10]} 9. Qd2 {[%emt 0:00:35]} h5 {[%emt 0:00:06]} 10. Be2 {[%emt 0:00:36]} Nbd7 {[%emt 0:00:10] B90: Sicilian Najdorf: Unusual White 6th moves, 6 Be3 Ng4 and 6 Be3 e5.} 11. Nd5 {[%emt 0:00:09]} Bxd5 {[%emt 0:00:30]} 12. exd5 {[%emt 0:00:05]} Qc7 {[%emt 0:00:13] White is slightly better. is now more promising than 12...0-0.} 13. Na5 {[%emt 0:01:06]} e4 {[%emt 0:06:15]} 14. f4 {[%emt 0:00:58] Prevents Ne5.} Ng4 {[%emt 0:00:39]} (14... Bd8 $5 {[%cal Rc7a5]} 15. b4 Ng4 $11) 15. Bxg4 {[%emt 0:00:09]} hxg4 {[%emt 0:00:02] [#]} 16. g3 $146 {[%emt 0:02:24] Inhibits Bh4.} ({Predecessor:} 16. O-O O-O 17. Rac1 Bf6 18. c4 Nc5 19. b4 Nd3 20. Rc2 Rac8 21. Rb1 Qd7 22. b5 axb5 23. Rxb5 Rxc4 24. Rxb7 Rxc2 25. Qxc2 {0-1 (48) Petrov,M (2533)-Yordanov,L (2296) Plovdiv 2021}) 16... f5 {[%emt 0:00:43]} 17. Rc1 {[%emt 0:03:20]} Bf6 {[%emt 0:03:12]} 18. c4 {[%emt 0:02:23]} Bxb2 {[%emt 0:14:48]} 19. Rb1 $14 {[%emt 0:01:16]} Bf6 {[%emt 0:00:19]} 20. Rxb7 {[%emt 0:00:14]} (20. Nxb7 Rb8 21. Qb4 O-O $19) 20... Qc8 {[%emt 0:00:52]} 21. O-O {[%emt 0:13:32]} O-O {[%emt 0:05:43]} (21... Bd8 $1 $11 {keeps the balance.} 22. Rfb1 Bxa5 23. Qxa5 Qxc4) 22. Rfb1 $1 $16 {[%emt 0:00:54]} Nc5 {[%emt 0:10:30]} 23. R7b6 $36 {[%emt 0:00:20][%mdl 2048] White is really pushing. White has more active pieces.} Bd8 {[%emt 0:12:29] [#]} 24. Rc6 {[%emt 0:01:21]} (24. Rxd6 $6 Bxa5 25. Qxa5 Nb7 26. Rxb7 Qxb7 $11) ({White should play} 24. Nc6 $1 $16) 24... Qd7 $14 {[%emt 0:00:04]} ({Less strong is} 24... Bxa5 25. Qxa5 Qd8 26. Qxd8 Rfxd8 27. Bxc5 dxc5 28. Kf2 $18 (28. Rxc5 Rdc8 $18)) 25. Kg2 {[%emt 0:04:42]} Re8 {[%emt 0:13:32]} (25... Rf6 $14) 26. Qb4 {[%emt 0:05:23]} (26. Bxc5 {with more complications.} dxc5 27. Nb7 e3 28. Qc2) 26... Rc8 {[%emt 0:19:30]} (26... Bxa5 $14 27. Qxa5 Qe7) 27. Bxc5 {[%emt 0:02:23]} (27. Rxc8 $1 $18 Qxc8 28. Nc6) 27... Bxa5 {[%emt 0:01:47]} (27... dxc5 $14 28. Qb7 (28. Rxc5 $2 {too greedy.} Rxc5 29. Qxc5 Qa4 $19) 28... Qxb7 29. Nxb7 Rxc6 30. dxc6 Bc7) 28. Qxa5 $16 {[%emt 0:00:20]} dxc5 {[%emt 0:00:03]} 29. Qxc5 {[%emt 0:00:24]} (29. Rxa6 $142 {Hoping for Ra7.} e3 30. Ra7) 29... e3 {[%emt 0:01:38]} 30. Rxc8 {[%emt 0:01:32]} (30. a3 $16) 30... Rxc8 $14 {[%emt 0:00:09]} 31. Qxe3 {[%emt 0:00:38] Threatens to win with Qd3.} Rxc4 {[%emt 0:00:07]} 32. Qe6+ {[%emt 0:03:20]} (32. Qd3 $14 Qc8 33. Rb8 $3 {[%mdl 512]} Qxb8 34. Qxc4) 32... Qxe6 $11 {[%emt 0:00:03]} 33. dxe6 {[%emt 0:00:07][%mdl 4096] Endgame KR-KR} Kf8 {[%emt 0:04:25]} 34. Rb7 {[%emt 0:00:21]} g6 {[%emt 0:01:10]} 35. Kf2 {[%emt 0:01:08]} Ra4 {[%emt 0:02:21]} 36. Rf7+ {[%emt 0:00:38]} Ke8 {[%emt 0:00:05]} 37. Rg7 {[%emt 0:00:10]} Rxa2+ {[%emt 0:00:09]} 38. Ke3 {[%emt 0:00:04]} Ra4 $1 {[%emt 0:00:33]} 39. Kd3 {[%emt 0:00:58]} Re4 {[%emt 0:01:03]} (39... a5 $11 {remains equal.}) 40. Rxg6 $16 {[%emt 0:00:07]} Ke7 {[%emt 0:00:08] [#] Against Rf6} 41. Rg7+ {[%emt 0:00:17]} (41. Rxg4 $1 $16 {aiming for Rg6.} Rxe6 (41... a5 42. h4) 42. Rg7+ Kf6 43. Ra7) 41... Kxe6 $14 {[%emt 0:00:08]} 42. Rg6+ {[%emt 0:00:04]} Kd5 {[%emt 0:00:47]} ({Black should try} 42... Kf7 $14 43. Rxg4 (43. Rxa6 Re8 $14) 43... a5) 43. Rxa6 {[%emt 0:00:55]} (43. Rf6 $1 $16 {[%cal Rf6f5]} Rd4+ 44. Kc3 Rc4+ 45. Kb3) 43... Rd4+ $11 {[%emt 0:00:03]} 44. Ke3 {[%emt 0:00:06]} Re4+ {[%emt 0:00:05]} 45. Kf2 {[%emt 0:00:31]} Rc4 {[%emt 0:02:03]} 46. Rf6 {[%emt 0:00:23]} Rc2+ {[%emt 0:00:14]} ({Better is} 46... Ke4 $14) 47. Ke3 $16 {[%emt 0:00:04]} Rc3+ {[%emt 0:01:09]} 48. Kd2 {[%emt 0:01:03]} Ra3 {[%emt 0:00:07]} 49. Rxf5+ {[%emt 0:00:11]} Ke4 $2 {[%emt 0:00:08]} (49... Kd4 $16 {was called for.}) 50. Rc5 {[%emt 0:01:17]} (50. Re5+ $142 Kd4 51. Ke1) 50... Kd4 $18 {[%emt 0:02:06]} 51. Rg5 {[%emt 0:06:11]} (51. Rc2 $18) 51... Ra2+ $11 {[%emt 0:00:04]} 52. Kc1 {[%emt 0:00:19]} Rxh2 {[%emt 0:00:13]} 53. Rxg4 {[%emt 0:00:07]} Kc3 $1 {[%emt 0:00:04][%cal Rh2h1]} 54. Kd1 {[%emt 0:00:08] f5 is the strong threat.} Kd3 $1 {[%emt 0:00:03][%cal Rh2h1]} 55. Ke1 {[%emt 0:00:03]} Ke3 {[%emt 0:00:05][%cal Rh2h1]} 56. Kf1 {[%emt 0:00:18]} Kf3 {[%emt 0:00:07][%cal Rh2h1]} 57. Kg1 {[%emt 0:00:04] Inhibits Rh1+.} Rg2+ {[%emt 0:01:57]} 58. Kh1 $1 {[%emt 0:00:07]} Ra2 {[%emt 0:00:34][%mdl 64]} 59. Rg8 {[%emt 0:01:44]} Ra1+ {[%emt 0:01:37]} 60. Kh2 {[%emt 0:00:07]} Ra2+ $2 {[%emt 0:00:07][%mdl 8192] White leaves nothing to chance now.} (60... Ra5 $11) 61. Kh3 {[%emt 0:00:31] Intending Kh4 and mate.} Ra1 $2 {[%emt 0:00:15][%mdl 8192]} (61... Ra6 $11 62. Kh4 Ra5) 62. Kh4 {[%emt 0:00:11]} Rh1+ {[%emt 0:00:03]} 63. Kg5 {[%emt 0:00:03]} Kxg3 {[%emt 0:00:04]} 64. Rb8 {[%emt 0:01:29]} Kf3 {[%emt 0:00:21]} 65. Rb4 {[%emt 0:00:12]} Rg1+ {[%emt 0:00:27]} 66. Kf5 {[%emt 0:00:32]} Kg3 {[%emt 0:00:15]} 67. Kg5 {[%emt 0:02:25]} Kf3+ $1 {[%emt 0:00:12] [#]} 68. Kf6 $1 {[%emt 0:00:27]} Kg4 {[%emt 0:00:17]} 69. f5+ {[%emt 0:00:03][%cal Bf4f5,Bf5f6][%mdl 32]} Kh5 {[%emt 0:00:05]} 70. Rb8 {[%emt 0:00:05]} Ra1 {[%emt 0:00:15] [#]} 71. Rh8+ $1 {[%emt 0:00:06]} Kg4 {[%emt 0:00:09]} 72. Kg6 {[%emt 0:00:05] White mates.} Kf4 {[%emt 0:01:51]} 73. f6 {[%emt 0:00:06]} Rg1+ {[%emt 0:01:33]} 74. Kf7 {[%emt 0:00:03]} Rg5 {[%emt 0:00:49]} 75. Rb8 {[%emt 0:01:18]} Ra5 {[%emt 0:00:21]} 76. Kg7 {[%emt 0:00:42]} Rg5+ {[%emt 0:00:24]} 77. Kf8 {[%emt 0:00:06]} Kf5 {[%emt 0:03:30]} 78. Kf7 {[%emt 0:00:05]} Kf4 {[%emt 0:00:31]} 79. Rb4+ {[%emt 0:00:05] Weighted Error Value: White=0.29 (precise) /Black=0.38} 1-0